bitfinex/quotes_BTCUSD_20230905
["timestamp","ask_amount","ask_price","bid_price","bid_amount"]
[1693907506353,0.775554,25788.0,25787.0,0.001]
[1693907506720,1.551108,25788.0,25787.0,0.001]
[1693907507097,2.71330727,25788.0,25787.0,0.001]
[1693907507322,2.82810727,25788.0,25787.0,0.002]
[1693907507481,2.82810727,25788.0,25787.0,0.001]
[1693907507687,3.1953889,25788.0,25787.0,0.001]
[1693907507886,3.3735889,25788.0,25787.0,0.002]
[1693907508371,3.61683608,25788.0,25787.0,0.002]
[1693907508571,3.61683608,25788.0,25787.0,0.02122959]
[1693907509034,3.2073889,25788.0,25787.0,0.02122959]
[1693907509477,3.2073889,25788.0,25783.0,1.56791781]
[1693907509653,0.38664527,25787.0,25783.0,0.79222481]
[1693907509887,1.551237,25786.0,25783.0,0.09251186]
[1693907510100,0.28845761,25785.0,25783.0,0.09239516]
[1693907510344,0.28845761,25785.0,25783.0,0.86809616]
[1693907510551,1.06410361,25785.0,25784.0,0.0187303]
[1693907510761,0.28845761,25785.0,25784.0,0.0187303]
[1693907511194,1.06410161,25785.0,25784.0,0.0187303]
[1693907511367,1.83974561,25785.0,25784.0,0.0187303]
[1693907511595,1.84174561,25785.0,25784.0,0.0187303]
[1693907511797,1.83974561,25785.0,25784.0,0.0187303]
[1693907512111,1.84074561,25785.0,25784.0,0.0187303]
[1693907512649,1.84274561,25785.0,25784.0,0.0187303]
[1693907513064,1.84074561,25785.0,25784.0,0.0187303]
[1693907513264,1.84274561,25785.0,25784.0,0.0187303]
[1693907514926,0.23247635,25784.0,25782.0,1.0995253]
[1693907516171,0.23347635,25784.0,25783.0,0.13876779]
[1693907516380,0.23347635,25784.0,25783.0,0.59725989]
[1693907516592,0.23347635,25784.0,25783.0,0.13876779]
[1693907517002,0.23347635,25784.0,25782.0,1.8912573]
[1693907517208,0.23347635,25784.0,25783.0,0.59726558]
[1693907517395,0.23447635,25784.0,25783.0,0.60426558]
[1693907517592,0.23347635,25784.0,25783.0,0.60426558]
[1693907517818,0.23347635,25784.0,25783.0,0.61126558]
[1693907518112,0.23347635,25784.0,25783.0,0.15276779]
[1693907518316,0.23347635,25784.0,25783.0,0.61126554]
[1693907518768,0.23247635,25784.0,25783.0,0.60426554]
[1693907518976,0.23347635,25784.0,25783.0,0.60426554]
[1693907519589,0.23247635,25784.0,25783.0,0.60426554]
[1693907519901,0.23347635,25784.0,25783.0,0.22320516]
[1693907522130,0.001,25784.0,25783.0,0.61086383]
[1693907522337,0.001,25784.0,25783.0,2.26507183]
[1693907522555,0.001,25784.0,25783.0,2.51366948]
[1693907523163,0.001,25784.0,25783.0,2.28230589]
[1693907525047,0.001,25784.0,25783.0,2.46724494]
[1693907527208,0.001,25784.0,25783.0,2.28230589]
[1693907528865,0.001,25784.0,25783.0,2.42101168]
[1693907531281,0.25856613,25784.0,25783.0,0.10971256]
[1693907531487,0.25856613,25784.0,25783.0,0.79293806]
[1693907532066,0.25856613,25784.0,25783.0,1.56864206]
[1693907533202,0.25856613,25784.0,25783.0,0.79293806]
[1693907533952,0.25856613,25784.0,25783.0,0.01723406]
[1693907535842,2.57363001,25784.0,25783.0,0.01723406]
[1693907536415,2.2993594,25784.0,25783.0,0.01723406]
[1693907536617,2.1965594,25784.0,25783.0,0.01992532]
[1693907536990,2.9722334,25784.0,25783.0,0.006]
[1693907537191,2.9712334,25784.0,25780.0,0.8682545]
[1693907537608,2.9922334,25784.0,25783.0,0.008]
[1693907537815,3.53567867,25784.0,25783.0,0.008]
[1693907538179,3.37787867,25784.0,25783.0,0.002]
[1693907538590,3.12131254,25784.0,25783.0,0.002]
[1693907538789,3.4111253,25784.0,25783.0,0.002]
[1693907539142,3.4101253,25784.0,25780.0,0.0894785]
[1693907539360,2.82133476,25784.0,25783.0,0.002]
[1693907539568,2.531522,25784.0,25783.0,0.002]
[1693907539984,0.29993673,25783.0,25779.0,0.81931128]
[1693907540185,1.551477,25782.0,25779.0,0.04349028]
[1693907540399,2.327218,25782.0,25779.0,0.50202401]
[1693907540613,2.327218,25782.0,25780.0,0.02001618]
[1693907540811,2.327218,25782.0,25780.0,0.02601618]
[1693907541060,2.482416,25782.0,25780.0,0.02601618]
[1693907541264,0.7691824,25781.0,25780.0,0.02001618]
[1693907541501,3.0964774,25781.0,25780.0,0.02001618]
[1693907541709,3.08161258,25781.0,25780.0,0.02001618]
[1693907541912,3.08161258,25781.0,25780.0,0.006]
[1693907542120,3.46825785,25781.0,25776.0,0.775904]
[1693907542335,3.48025785,25781.0,25780.0,0.001]
[1693907542544,3.64905785,25781.0,25780.0,0.002]
[1693907543371,3.48418554,25781.0,25780.0,0.002]
[1693907543586,3.46018554,25781.0,25774.0,0.775955]
[1693907543799,3.46018554,25781.0,25775.0,0.775945]
[1693907543800,0.1028,25779.0,25775.0,0.775945]
[1693907544008,1.93836727,25778.0,25776.0,0.016]
[1693907544502,1.93836727,25778.0,25775.0,0.775945]
[1693907545527,1.94036727,25778.0,25775.0,0.775945]
[1693907545736,1.94036727,25778.0,25775.0,0.67871448]
[1693907546555,2.19543228,25778.0,25775.0,0.67871448]
[1693907546769,0.272578,25777.0,25775.0,0.67871448]
[1693907546972,1.43511627,25777.0,25774.0,1.551916]
[1693907547182,1.43511627,25777.0,25775.0,0.008]
[1693907547384,1.43511627,25777.0,25775.0,0.016]
[1693907547794,1.43511627,25777.0,25775.0,0.008]
[1693907547974,1.43511627,25777.0,25774.0,1.551916]
[1693907548110,1.43911627,25777.0,25774.0,1.584916]
[1693907548325,1.43711627,25777.0,25774.0,1.567916]
[1693907548557,1.43511627,25777.0,25774.0,1.551916]
[1693907548753,0.59698004,25776.0,25773.0,0.41630264]
[1693907548964,0.38664527,25776.0,25775.0,0.008]
[1693907549171,2.99999027,25776.0,25775.0,0.016]
[1693907549377,3.22009709,25776.0,25775.0,0.016]
[1693907549574,4.3680338,25776.0,25775.0,0.016]
[1693907549784,4.2652338,25776.0,25771.0,0.05291271]
[1693907550007,0.1028,25775.0,25771.0,0.5115783]
[1693907550219,1.93860727,25774.0,25771.0,1.2876403]
[1693907550406,1.93860727,25774.0,25771.0,0.05291271]
[1693907550603,1.93860727,25774.0,25771.0,0.51157715]
[1693907550998,1.93860727,25774.0,25770.0,0.18493905]
[1693907550999,2.97264027,25774.0,25770.0,0.18493905]
[1693907551197,3.13044027,25774.0,25770.0,0.64361715]
[1693907551438,0.26882559,25773.0,25771.0,0.001]
[1693907551651,1.93871727,25772.0,25771.0,0.001]
[1693907551857,1.93871727,25772.0,25771.0,0.002]
[1693907552008,1.93871727,25772.0,25771.0,0.001]
[1693907553024,1.93871727,25772.0,25770.0,0.18493905]
[1693907553326,1.93871727,25772.0,25770.0,0.54636645]
[1693907553736,2.81755327,25772.0,25771.0,0.001]
[1693907554022,3.10584269,25772.0,25771.0,0.001]
[1693907554154,3.50348796,25772.0,25771.0,0.17078833]
[1693907554351,3.50348796,25772.0,25771.0,0.16878833]
[1693907554725,3.12084269,25772.0,25771.0,0.16878833]
[1693907554859,3.10984269,25772.0,25771.0,0.16878833]
[1693907555060,3.10784269,25772.0,25771.0,0.16878833]
[1693907555242,3.11884269,25772.0,25771.0,0.18927062]
[1693907556081,3.11684269,25772.0,25771.0,0.18927062]
[1693907556297,3.12784269,25772.0,25771.0,0.19027062]
[1693907556500,3.51448796,25772.0,25771.0,0.19027062]
[1693907556898,3.12784269,25772.0,25771.0,0.19027062]
[1693907557098,2.83955327,25772.0,25771.0,0.02148229]
[1693907557364,3.05585116,25772.0,25771.0,0.02148229]
[1693907559682,2.95323372,25772.0,25771.0,0.02148229]
[1693907559888,2.95323372,25772.0,25771.0,0.11368011]
[1693907560331,2.95323372,25772.0,25771.0,0.02148229]
[1693907561488,3.07887418,25772.0,25771.0,0.02148229]
[1693907564109,3.05687418,25772.0,25771.0,0.01948229]
[1693907564313,2.17803818,25772.0,25771.0,0.02048229]
[1693907564526,2.18803818,25772.0,25771.0,0.02048229]
[1693907564740,2.17803818,25772.0,25771.0,0.01948229]
[1693907564951,2.20203818,25772.0,25771.0,0.02048229]
[1693907565367,2.21203818,25772.0,25771.0,0.02048229]
[1693907565998,2.20203818,25772.0,25771.0,0.02048229]
[1693907566165,2.22603818,25772.0,25771.0,0.02048229]
[1693907567967,2.10039772,25772.0,25771.0,0.02048229]
[1693907568952,1.32436172,25772.0,25771.0,0.02048229]
[1693907569927,0.72141856,25772.0,25771.0,0.02048229]
[1693907570212,0.048,25772.0,25771.0,0.79654829]
[1693907570365,0.048,25772.0,25771.0,1.57261429]
[1693907570575,0.048,25772.0,25771.0,1.66481211]
[1693907571978,0.048,25772.0,25771.0,1.67182176]
[1693907573039,0.048,25772.0,25771.0,1.57962394]
[1693907574868,0.048,25772.0,25771.0,0.80355794]
[1693907575066,0.30447165,25772.0,25771.0,0.02749194]
[1693907575616,1.08050765,25772.0,25771.0,0.11968976]
[1693907576022,0.30447165,25772.0,25771.0,0.11968976]
[1693907577704,1.08050765,25772.0,25771.0,0.11968976]
[1693907578515,3.38760289,25772.0,25771.0,0.25800479]
[1693907578715,3.49040289,25772.0,25771.0,0.11968976]
[1693907579955,3.38760289,25772.0,25771.0,0.11968976]
[1693907580373,2.24318892,25772.0,25771.0,0.11968976]
[1693907580576,1.21068127,25772.0,25771.0,0.11968976]
[1693907581426,0.824036,25772.0,25771.0,0.11968976]
[1693907581630,0.048,25772.0,25771.0,0.62452747]
[1693907583460,0.824036,25772.0,25771.0,0.80890792]
[1693907584380,1.10364405,25772.0,25771.0,0.80890792]
[1693907584583,1.10364405,25772.0,25771.0,0.8092709]
[1693907585381,0.824036,25772.0,25771.0,0.8092709]
[1693907585583,0.824036,25772.0,25771.0,0.67059289]
[1693907586001,1.600072,25772.0,25771.0,0.67059289]
[1693907586432,1.600072,25772.0,25771.0,0.80931113]
[1693907586633,1.600072,25772.0,25771.0,0.67059289]
[1693907587642,1.600072,25772.0,25771.0,0.90188091]
[1693907587818,2.376108,25772.0,25771.0,0.90188091]
[1693907588198,2.99917818,25772.0,25771.0,0.90188091]
[1693907588405,2.99917818,25772.0,25771.0,0.67128613]
[1693907588612,3.38582345,25772.0,25771.0,0.90188091]
[1693907589555,2.99917818,25772.0,25771.0,0.90188091]
[1693907589762,1.600072,25772.0,25771.0,0.90188091]
[1693907589965,0.048,25772.0,25771.0,0.67128613]
[1693907590547,0.824036,25772.0,25771.0,0.67128613]
[1693907592180,0.048,25772.0,25771.0,0.67128613]
[1693907592381,0.048,25772.0,25771.0,0.90188091]
[1693907592557,0.048,25772.0,25771.0,0.67128613]
[1693907593747,0.048,25772.0,25771.0,1.44735213]
[1693907595588,0.048,25772.0,25771.0,1.58633714]
[1693907596680,0.048,25772.0,25771.0,1.40126345]
[1693907597330,0.048,25772.0,25771.0,1.58633714]
[1693907597561,0.048,25772.0,25771.0,1.40126345]
[1693907598607,0.048,25772.0,25771.0,1.03521105]
[1693907599649,0.048,25772.0,25771.0,0.89622604]
[1693907600914,0.048,25772.0,25771.0,1.67229204]
[1693907602377,0.048,25772.0,25771.0,2.44835804]
[1693907602758,0.048,25772.0,25771.0,2.58734305]
[1693907603163,0.048,25772.0,25771.0,2.69014305]
[1693907603378,0.048,25772.0,25771.0,3.14883016]
[1693907604222,0.048,25772.0,25771.0,3.05616206]
[1693907607057,0.04767471,25772.0,25771.0,3.05616206]
[1693907609758,0.04767471,25772.0,25771.0,3.24123575]
[1693907610038,0.04767471,25772.0,25771.0,3.10225074]
[1693907610195,0.04767471,25772.0,25771.0,3.33284552]
[1693907610651,0.04767471,25772.0,25771.0,3.10225074]
[1693907614460,0.04866973,25772.0,25771.0,3.10225074]
[1693907617550,0.04866973,25772.0,25771.0,3.24113738]
[1693907621777,0.04866973,25772.0,25771.0,3.05606369]
[1693907624505,0.04866973,25772.0,25771.0,2.27999769]
[1693907625743,0.04767471,25772.0,25771.0,2.27999769]
[1693907625944,0.04866973,25772.0,25771.0,2.27999769]
[1693907626641,0.04866973,25772.0,25771.0,2.29999769]
[1693907633741,0.04866973,25772.0,25771.0,2.29333805]
[1693907633974,0.04866973,25772.0,25771.0,2.29846658]
[1693907635836,0.04866973,25772.0,25771.0,1.93236767]
[1693907636597,0.04866973,25772.0,25771.0,2.39104062]
[1693907637247,0.04866973,25772.0,25771.0,1.61497462]
[1693907637785,0.04866973,25772.0,25771.0,1.52238642]
[1693907638680,0.04866973,25772.0,25771.0,1.15631425]
[1693907639486,0.04866973,25772.0,25771.0,1.61498815]
[1693907640112,0.04866973,25772.0,25771.0,1.15631425]
[1693907640289,0.04866973,25772.0,25771.0,1.93238025]
[1693907640491,0.04866973,25772.0,25771.0,2.39105481]
[1693907641264,0.04866973,25772.0,25771.0,2.39106224]
[1693907641473,0.04866973,25772.0,25771.0,3.16712824]
[1693907642149,0.04866973,25772.0,25771.0,3.07452003]
[1693907645588,0.04866973,25772.0,25771.0,0.82859572]
[1693907645916,1.84042572,25772.0,25771.0,0.62352203]
[1693907647089,0.82470573,25772.0,25771.0,0.62352203]
[1693907647301,0.04866973,25772.0,25771.0,0.62352203]
[1693907649181,0.04866973,25772.0,25771.0,3.05452003]
[1693907649417,0.04866973,25772.0,25771.0,2.27845403]
[1693907649604,0.04866973,25772.0,25771.0,3.23959372]
[1693907650555,0.04767471,25772.0,25771.0,3.23959372]
[1693907650760,0.04866973,25772.0,25771.0,3.23959372]
[1693907651970,0.04767471,25772.0,25771.0,3.23959372]
[1693907652171,0.04866973,25772.0,25771.0,3.23959372]
[1693907654833,0.04866973,25772.0,25771.0,3.05452003]
[1693907656313,0.04866973,25772.0,25771.0,3.10070708]
[1693907658526,0.04866973,25772.0,25771.0,3.14622817]
[1693907661371,0.04866973,25772.0,25771.0,3.33153458]
[1693907663133,0.04866973,25772.0,25771.0,3.1009398]
[1693907666537,0.04866973,25772.0,25771.0,3.1209398]
[1693907683109,0.04767471,25772.0,25771.0,4.24229417]
[1693907686494,0.04767471,25772.0,25771.0,3.46622817]
[1693907697388,0.04767471,25772.0,25771.0,3.65162326]
[1693907699522,0.04767471,25772.0,25771.0,3.46622817]
[1693907706084,0.04767471,25772.0,25771.0,3.65165941]
[1693907717871,0.24648346,25772.0,25771.0,2.37016217]
[1693907718081,0.24648346,25772.0,25771.0,0.72655833]
[1693907718284,2.96123673,25772.0,25771.0,0.1187167]
[1693907719425,2.18520073,25772.0,25771.0,0.1187167]
[1693907719957,2.96123673,25772.0,25771.0,0.1187167]
[1693907721584,2.96123673,25772.0,25771.0,0.02596083]
[1693907723967,2.18520073,25772.0,25771.0,0.02596083]
[1693907724874,0.04866973,25772.0,25771.0,2.35415883]
[1693907725120,0.04866973,25772.0,25771.0,2.45695883]
[1693907725396,0.04866973,25772.0,25771.0,1.68089283]
[1693907731078,0.04866973,25772.0,25771.0,0.12876083]
[1693907731079,1.05914295,25772.0,25771.0,0.12876083]
[1693907731443,1.44578822,25772.0,25771.0,0.12876083]
[1693907731653,2.99786022,25772.0,25771.0,0.02596083]
[1693907742336,2.763423,25772.0,25771.0,0.02596083]
[1693907742964,3.00454138,25772.0,25771.0,0.02596083]
[1693907745381,2.98086667,25772.0,25771.0,0.02496083]
[1693907745793,2.98086667,25772.0,25768.0,0.09275587]
[1693907745997,0.00099502,25769.0,25768.0,0.09275587]
[1693907746206,0.77712102,25769.0,25768.0,0.09275587]
[1693907746783,1.93989229,25769.0,25767.0,0.33467881]
[1693907746940,0.00099502,25768.0,25767.0,0.19555587]
[1693907747138,0.77715102,25768.0,25767.0,0.19555587]
[1693907748605,0.79615102,25768.0,25767.0,0.19555587]
[1693907748806,0.81315102,25768.0,25767.0,0.19555587]
[1693907748999,2.97832574,25768.0,25767.0,0.09275587]
[1693907749267,2.97832574,25768.0,25765.0,0.11265286]
[1693907749469,0.38664527,25767.0,25765.0,0.11265286]
[1693907749652,0.776216,25766.0,25765.0,0.11265286]
[1693907749853,0.776216,25766.0,25765.0,0.01989699]
[1693907749854,3.3424519,25766.0,25765.0,0.01989699]
[1693907750277,1.94007229,25766.0,25765.0,0.01989699]
[1693907750481,1.94007229,25766.0,25765.0,0.04229909]
[1693907750892,2.09537129,25766.0,25765.0,0.04229909]
[1693907752068,2.11937129,25766.0,25765.0,0.04229909]
[1693907752265,2.39463587,25766.0,25765.0,0.04229909]
[1693907752463,2.73771866,25766.0,25765.0,0.04229909]
[1693907752675,2.41863587,25766.0,25765.0,0.04229909]
[1693907752879,3.19485187,25766.0,25765.0,0.04229909]
[1693907753056,3.17085187,25766.0,25765.0,0.04229909]
[1693907753458,3.19485187,25766.0,25765.0,0.04229909]
[1693907753744,0.26976656,25765.0,25762.0,0.13912294]
[1693907753957,1.55360902,25763.0,25762.0,0.5979328]
[1693907754180,0.38764029,25763.0,25762.0,0.5979328]
[1693907754388,0.00099502,25762.0,25761.0,1.81894917]
[1693907754596,0.00099502,25762.0,25761.0,2.27777461]
[1693907754802,0.00099502,25762.0,25761.0,2.0836636]
[1693907755766,0.00299502,25762.0,25761.0,2.0846636]
[1693907756176,0.00299502,25762.0,25761.0,2.15165038]
[1693907756620,0.2463014,25762.0,25761.0,0.59894838]
[1693907756822,0.2463014,25762.0,25761.0,0.001]
[1693907756823,1.40928367,25762.0,25761.0,0.001]
[1693907757446,1.40828367,25762.0,25761.0,0.001]
[1693907757622,1.40928367,25762.0,25761.0,0.001]
[1693907758055,2.18362067,25762.0,25760.0,0.91550794]
[1693907758258,0.00099502,25761.0,25760.0,0.91550794]
[1693907758464,0.26567359,25761.0,25760.0,0.13912294]
[1693907758675,1.04204059,25761.0,25760.0,0.13912294]
[1693907758878,1.81840759,25761.0,25760.0,0.13912294]
[1693907759489,1.82640759,25761.0,25760.0,0.13912294]
[1693907759695,1.05004059,25761.0,25760.0,0.13912294]
[1693907759910,0.26567359,25761.0,25760.0,0.13912294]
[1693907760365,0.26567359,25761.0,25760.0,0.91551994]
[1693907760563,0.26567359,25761.0,25760.0,0.776397]
[1693907760769,0.26567359,25761.0,25760.0,0.91551994]
[1693907761563,0.30167359,25761.0,25760.0,0.93864228]
[1693907761865,0.30167359,25761.0,25760.0,1.39750778]
[1693907763964,0.30167359,25761.0,25760.0,2.17390478]
[1693907765011,0.30167359,25761.0,25760.0,2.26646583]
[1693907765212,0.30167359,25761.0,25760.0,2.17390478]
[1693907766239,0.03699502,25761.0,25760.0,2.17390478]
[1693907766440,0.03699502,25761.0,25760.0,2.27670478]
[1693907767084,0.03699502,25761.0,25760.0,2.36925145]
[1693907767706,0.03699502,25761.0,25760.0,3.14564845]
[1693907768377,0.03699502,25761.0,25760.0,3.05310178]
[1693907768603,0.03699502,25761.0,25760.0,3.23825603]
[1693907769034,1.827761,25766.0,25761.0,0.00099502]
[1693907769035,0.00099502,25762.0,25761.0,0.00099502]
[1693907769269,0.00099502,25763.0,25761.0,3.79658445]
[1693907769480,0.00099502,25763.0,25762.0,0.87511872]
[1693907769693,0.00099502,25763.0,25762.0,3.20412972]
[1693907771171,0.00099502,25763.0,25762.0,3.20612972]
[1693907771610,0.00099502,25763.0,25762.0,3.20912972]
[1693907771818,0.00199502,25763.0,25762.0,2.97787379]
[1693907772171,0.00199502,25763.0,25762.0,3.20912972]
[1693907772977,0.001,25763.0,25762.0,3.32413243]
[1693907776494,0.001,25763.0,25762.0,3.42693243]
[1693907780564,0.001,25763.0,25762.0,3.4500159]
[1693907781277,0.001,25763.0,25762.0,3.63513176]
[1693907781488,0.001,25763.0,25762.0,1.85120183]
[1693907781692,0.001,25763.0,25762.0,2.62753883]
[1693907782239,0.001,25763.0,25762.0,3.40387583]
[1693907786847,0.001,25763.0,25762.0,3.65513176]
[1693907789604,0.227556,25763.0,25762.0,1.26328597]
[1693907789813,0.227556,25763.0,25762.0,0.12076161]
[1693907789814,1.003863,25763.0,25762.0,0.12076161]
[1693907790872,3.16810538,25763.0,25762.0,0.12076161]
[1693907791081,3.16810538,25763.0,25762.0,0.02808347]
[1693907791082,2.71756129,25763.0,25762.0,0.02808347]
[1693907791298,2.94586393,25763.0,25762.0,0.02808347]
[1693907791509,2.94586393,25763.0,25762.0,0.02608347]
[1693907791716,2.94486393,25763.0,25762.0,0.02308347]
[1693907791920,2.94486393,25763.0,25762.0,0.02508347]
[1693907792125,2.94586393,25763.0,25762.0,0.02908347]
[1693907792325,3.28291874,25763.0,25762.0,0.02308347]
[1693907792736,3.33091874,25763.0,25762.0,0.02708347]
[1693907792945,2.21655693,25763.0,25762.0,0.02708347]
[1693907797873,2.99286393,25763.0,25762.0,0.02708347]
[1693907798311,2.76456129,25763.0,25762.0,0.02708347]
[1693907798487,2.97904467,25763.0,25762.0,0.02708347]
[1693907798845,2.20273767,25763.0,25762.0,0.02708347]
[1693907799058,2.58938294,25763.0,25762.0,0.02708347]
[1693907799253,3.36568994,25763.0,25762.0,0.02708347]
[1693907799479,2.58938294,25763.0,25762.0,0.02708347]
[1693907799661,2.20273767,25763.0,25762.0,0.02708347]
[1693907800762,1.42643067,25763.0,25762.0,0.02708347]
[1693907800987,0.65012367,25763.0,25762.0,0.02708347]
[1693907801193,2.20273767,25763.0,25762.0,0.02708347]
[1693907804069,2.97904467,25763.0,25762.0,0.02708347]
[1693907804908,3.36568994,25763.0,25762.0,0.02708347]
[1693907805538,2.97904467,25763.0,25762.0,0.02708347]
[1693907805772,2.76456129,25763.0,25762.0,0.02708347]
[1693907806589,2.99228157,25763.0,25762.0,0.02708347]
[1693907806932,2.86736129,25763.0,25762.0,0.02708347]
[1693907807153,3.09390297,25763.0,25762.0,0.02708347]
[1693907807359,3.48054824,25763.0,25762.0,0.02708347]
[1693907807558,3.09390297,25763.0,25762.0,0.02708347]
[1693907807760,3.06990297,25763.0,25762.0,0.02508347]
[1693907807972,3.04590297,25763.0,25762.0,0.02308347]
[1693907808169,0.00099502,25760.0,25759.0,0.11257513]
[1693907808421,0.38764029,25760.0,25759.0,0.11257513]
[1693907809214,1.16403729,25760.0,25759.0,0.11257513]
[1693907809422,1.20703729,25760.0,25759.0,0.11257513]
[1693907810239,1.20703729,25760.0,25759.0,0.13612512]
[1693907811591,0.43064029,25760.0,25759.0,0.13612512]
[1693907811797,0.04399502,25760.0,25759.0,0.13612512]
[1693907812030,0.04399502,25760.0,25759.0,2.56820612]
[1693907815811,0.04399502,25760.0,25759.0,3.0734979]
[1693907816017,0.04399502,25760.0,25759.0,3.25884481]
[1693907816440,0.04399502,25760.0,25759.0,3.11983463]
[1693907816621,0.04399502,25760.0,25759.0,3.13983463]
[1693907821170,0.04399502,25760.0,25759.0,3.37109056]
[1693907823541,0.043,25760.0,25759.0,3.37109056]
[1693907823749,0.04399502,25760.0,25759.0,3.37109056]
[1693907824365,0.04399502,25760.0,25759.0,3.18574365]
[1693907827192,0.04399502,25760.0,25759.0,3.37121758]
[1693907827401,0.04399502,25760.0,25759.0,3.03716165]
[1693907829243,0.04399502,25760.0,25759.0,3.13996165]
[1693907832756,0.33592389,25760.0,25759.0,0.68788065]
[1693907833696,0.33592389,25760.0,25759.0,1.46430765]
[1693907834314,0.33592389,25760.0,25759.0,1.69556358]
[1693907834740,0.33592389,25760.0,25759.0,1.46430765]
[1693907834953,0.33592389,25760.0,25759.0,1.69556358]
[1693907835300,0.33592389,25760.0,25759.0,1.27016998]
[1693907835595,0.33592389,25760.0,25759.0,1.52424538]
[1693907835972,0.33592389,25760.0,25759.0,0.74781838]
[1693907836375,1.11232089,25760.0,25759.0,0.51656245]
[1693907837673,2.55772095,25760.0,25759.0,0.51656245]
[1693907837878,2.55772095,25760.0,25759.0,0.65580189]
[1693907838250,2.55772095,25760.0,25759.0,0.27618275]
[1693907838453,2.27536316,25760.0,25759.0,0.27618275]
[1693907838912,1.98343429,25760.0,25759.0,0.16205891]
[1693907839132,2.75983129,25760.0,25759.0,0.02281947]
[1693907839346,2.75983129,25760.0,25758.0,0.08064198]
[1693907839552,0.61177473,25759.0,25758.0,0.08064198]
[1693907839762,2.16462873,25759.0,25758.0,0.08064198]
[1693907840987,2.18862873,25759.0,25758.0,0.08064198]
[1693907841596,0.00099502,25757.0,25756.0,1.97894168]
[1693907842402,0.15633702,25757.0,25756.0,1.84130393]
[1693907842787,0.15633702,25757.0,25756.0,1.66932938]
[1693907842991,0.16933702,25757.0,25756.0,1.66932938]
[1693907843164,0.46473925,25757.0,25756.0,1.66932938]
[1693907844112,0.46473925,25757.0,25756.0,1.76069016]
[1693907845624,0.46473925,25757.0,25756.0,1.56652234]
[1693907846625,0.46473925,25757.0,25756.0,1.66932234]
[1693907846946,0.46473925,25757.0,25756.0,1.67801623]
[1693907847896,0.46473925,25757.0,25756.0,1.48384841]
[1693907848309,0.46473925,25757.0,25756.0,0.86937692]
[1693907848744,0.46473925,25757.0,25756.0,0.16204351]
[1693907848950,0.56798229,25757.0,25756.0,0.16204351]
[1693907849127,1.59058411,25757.0,25756.0,0.16204351]
[1693907849335,0.00099502,25756.0,25755.0,0.8836074]
[1693907849693,0.22173656,25756.0,25755.0,0.8836074]
[1693907850607,0.22573656,25756.0,25755.0,0.91574371]
[1693907850808,0.23773656,25756.0,25755.0,1.79509171]
[1693907851815,0.23373656,25756.0,25755.0,1.79509171]
[1693907852040,0.23373656,25756.0,25755.0,1.63232144]
[1693907852312,0.24673656,25756.0,25755.0,1.63232144]
[1693907852953,0.24673656,25756.0,25755.0,2.09125243]
[1693907853619,0.24673656,25756.0,25755.0,2.18402441]
[1693907854044,0.24673656,25756.0,25755.0,2.09125243]
[1693907854580,0.24673656,25756.0,25755.0,2.18402197]
[1693907855729,0.24673656,25756.0,25755.0,2.20698108]
[1693907857495,0.24673656,25756.0,25755.0,1.74805009]
[1693907857720,0.24673656,25756.0,25755.0,2.52459809]
[1693907862090,0.24673656,25756.0,25755.0,2.493193]
[1693907862725,0.02599502,25756.0,25755.0,2.493193]
[1693907863337,0.02599502,25756.0,25755.0,2.41659522]
[1693907864039,0.02599502,25756.0,25755.0,2.8755207]
[1693907866440,0.02599502,25756.0,25755.0,2.78275116]
[1693907869155,0.02599502,25756.0,25755.0,2.96829922]
[1693907870420,0.02599502,25756.0,25755.0,3.20029042]
[1693907871309,0.02599502,25756.0,25755.0,3.33186785]
[1693907872515,0.02599502,25756.0,25755.0,3.14631979]
[1693907876208,0.25044861,25756.0,25755.0,3.14631979]
[1693907876434,0.25044861,25756.0,25755.0,2.36977179]
[1693907877228,0.25044861,25756.0,25755.0,1.59322379]
[1693907877475,0.25044861,25756.0,25755.0,0.77035511]
[1693907877680,0.25044861,25756.0,25755.0,1.54690311]
[1693907878448,0.25044861,25756.0,25755.0,1.77889431]
[1693907880411,0.25044861,25756.0,25755.0,2.55544231]
[1693907880625,0.25044861,25756.0,25755.0,2.36977179]
[1693907881672,0.25044861,25756.0,25755.0,2.19710598]
[1693907882807,0.25044861,25756.0,25755.0,2.00293062]
[1693907883028,0.25044861,25756.0,25755.0,2.10573062]
[1693907884133,0.25044861,25756.0,25755.0,1.91155526]
[1693907885358,0.25044861,25756.0,25755.0,1.7173799]
[1693907886755,0.25044861,25756.0,25755.0,2.68594475]
[1693907887387,0.02599502,25756.0,25755.0,2.68594475]
[1693907889165,0.02599502,25756.0,25755.0,2.70594475]
[1693907891350,0.31239361,25756.0,25755.0,1.73522139]
[1693907891580,0.31239361,25756.0,25755.0,0.93867339]
[1693907892776,0.31239361,25756.0,25755.0,0.84729803]
[1693907892982,0.31239361,25756.0,25755.0,0.86809011]
[1693907893945,0.31239361,25756.0,25755.0,0.90014008]
[1693907895250,0.31239361,25756.0,25755.0,1.0220192]
[1693907896695,0.31239361,25756.0,25755.0,0.2454712]
[1693907897381,0.31210941,25756.0,25755.0,0.2454712]
[1693907898318,0.31210941,25756.0,25755.0,0.3848497]
[1693907898725,0.31210941,25756.0,25755.0,0.2454712]
[1693907898925,0.31210941,25756.0,25755.0,0.38484844]
[1693907901591,0.31210941,25756.0,25755.0,0.2454712]
[1693907901813,0.31210941,25756.0,25755.0,0.38483492]
[1693907902890,0.29910941,25756.0,25755.0,0.38483492]
[1693907903092,0.28739361,25756.0,25755.0,0.38483492]
[1693907903296,0.31239361,25756.0,25755.0,0.38483492]
[1693907903504,0.30039361,25756.0,25755.0,0.38483492]
[1693907903744,0.28739361,25756.0,25755.0,0.38483492]
[1693907903934,0.30939361,25756.0,25755.0,0.38483492]
[1693907904546,0.30939361,25756.0,25755.0,0.19899666]
[1693907904924,0.33039361,25756.0,25755.0,0.19899666]
[1693907905124,0.33039361,25756.0,25755.0,0.97554466]
[1693907905935,0.04399502,25756.0,25755.0,0.97554466]
[1693907906558,0.04399502,25756.0,25755.0,1.75209266]
[1693907910311,0.04399502,25756.0,25755.0,2.52864066]
[1693907910511,0.04399502,25756.0,25755.0,2.71447892]
[1693907910720,0.04399502,25756.0,25755.0,2.73447892]
[1693907916484,0.043,25756.0,25755.0,2.5951152]
[1693907917892,0.04399502,25756.0,25755.0,2.82740621]
[1693907922620,0.04399502,25756.0,25755.0,2.64156795]
[1693907923017,0.04399502,25756.0,25755.0,2.82736526]
[1693907923690,0.04399502,25756.0,25755.0,2.64156795]
[1693907924469,0.043,25756.0,25755.0,2.64156795]
[1693907927886,0.04399502,25756.0,25755.0,2.64156795]
[1693907931346,0.043,25756.0,25755.0,2.64156795]
[1693907932092,0.04399502,25756.0,25755.0,2.64156795]
[1693907932793,0.043,25756.0,25755.0,2.64156795]
[1693907934943,0.04399502,25756.0,25755.0,2.82737097]